Workbook

Sheet Table 1
A1: Table 1. National level crop yield data for 1995-2014 (FAOSTAT, 2017). Yields are converted to 'edible' equivalents using FAO technical conversion factors (FAO, 1972, Technical Conversion Factors for Agricultural Commodities)
B3: FAOSTAT item | C3: FAO technical conversion factors
C4: Waste | D4: Extraction and seeding rate | E4: Value fraction | F4: Yields (kg/ha) | G4: Edible yields (kg/ha)
C5: Proportion | F5: 2014 | G5: 2014
B6: Apples | C6: 0.1 | D6: 1 | E6: 1 | F6: 7978.8 | G6: =F6*(1-$C6)*$D6*(1/$E6) -> 7180.92
B7: Bananas | C7: 0.2 | D7: 1 | E7: 1 | F7: 37036.7 | G7: =F7*(1-$C7)*$D7*(1/$E7) -> 29629.36
B8: Barley | C8: 0 | D8: 0.7 | E8: 1 | F8: 2723.2 | G8: =F8*(1-$C8)*$D8*(1/$E8) -> 1906.24
B9: Beans, dry | C9: 0.04 | D9: 0.92 | E9: 1 | F9: 411 | G9: =F9*(1-$C9)*$D9*(1/$E9) -> 362.9952
B10: Cabbages and other brassicas | C10: 0.05 | D10: 1 | E10: 1 | F10: 22590.1 | G10: =F10*(1-$C10)*$D10*(1/$E10) -> 21460.595
B11: Cassava | C11: 0.05 | D11: 1 | E11: 1 | F11: 35655.5 | G11: =F11*(1-$C11)*$D11*(1/$E11) -> 33872.725
B12: Chick peas | C12: 0.02 | D12: 0.95 | E12: 1 | F12: 995.3 | G12: =F12*(1-$C12)*$D12*(1/$E12) -> 926.6243
B13: Chillies and peppers, green | C13: 0.1 | D13: 1 | E13: 1 | F13: 8491.6 | G13: =F13*(1-$C13)*$D13*(1/$E13) -> 7642.44
B14: Cocoa, beans | C14: 0 | D14: 0.53 | E14: 1 | F14: 211.3 | G14: =F14*(1-$C14)*$D14*(1/$E14) -> 111.989
B15: Coconuts | C15: 0.03 | D15: 1 | E15: 1 | F15: 5177 | G15: =F15*(1-$C15)*$D15*(1/$E15) -> 5021.69
B16: Coffee, green | C16: 0.015 | D16: 1 | E16: 1 | F16: 798.6 | G16: =F16*(1-$C16)*$D16*(1/$E16) -> 786.621
B17: Fruit, citrus nes | C17: 0.1 | D17: 1 | E17: 1 | F17: 13078.9 | G17: =F17*(1-$C17)*$D17*(1/$E17) -> 11771.01
B18: Fruit, tropical fresh nes | C18: 0.15 | D18: 1 | E18: 1 | F18: 11329.9 | G18: =F18*(1-$C18)*$D18*(1/$E18) -> 9630.415
B19: Grapefruit (inc. pomelos) | C19: 0.1 | D19: 1 | E19: 1 | F19: 23288 | G19: =F19*(1-$C19)*$D19*(1/$E19) -> 20959.2
B20: Grapes | C20: 0.1 | D20: 1 | E20: 1 | F20: 21773.1 | G20: =F20*(1-$C20)*$D20*(1/$E20) -> 19595.79
B21: Groundnuts, with shell | C21: 0.03 | D21: 0.62 | E21: 1 | F21: 1399.6 | G21: =F21*(1-$C21)*$D21*(1/$E21) -> 841.71944
B22: Lemons and limes | C22: 0.1 | D22: 1 | E22: 1 | F22: 9898.5 | G22: =F22*(1-$C22)*$D22*(1/$E22) -> 8908.65
B23: Maize | C23: 0.023 | D23: 0.8 | E23: 1 | F23: 2556.7 | G23: =F23*(1-$C23)*$D23*(1/$E23) -> 1998.31672
B24: Mangoes, mangosteens, guavas | C24: 0.1 | D24: 1 | E24: 1 | F24: 7325.7 | G24: =F24*(1-$C24)*$D24*(1/$E24) -> 6593.13
B25: Millet | C25: 0.01 | D25: 0.93 | E25: 1 | F25: 1282.6 | G25: =F25*(1-$C25)*$D25*(1/$E25) -> 1180.88982
B26: Oilseeds nes | C26: 0 | D26: 0.36 | E26: 1 | F26: 317.4 | G26: =F26*(1-$C26)*$D26*(1/$E26) -> 114.264
B27: Onions, dry | C27: 0.05 | D27: 1 | E27: 1 | F27: 16120.1 | G27: =F27*(1-$C27)*$D27*(1/$E27) -> 15314.095
B28: Oranges | C28: 0.1 | D28: 1 | E28: 1 | F28: 11005.4 | G28: =F28*(1-$C28)*$D28*(1/$E28) -> 9904.86
B29: Peas, dry | C29: 0.1 | D29: 1 | E29: 1 | F29: 821.9 | G29: =F29*(1-$C29)*$D29*(1/$E29) -> 739.71
B30: Pepper (piper spp.) | C30: 0.1 | D30: 1 | E30: 1 | F30: 411.3 | G30: =F30*(1-$C30)*$D30*(1/$E30) -> 370.17
B31: Pineapples | C31: 0.1 | D31: 1 | E31: 1 | F31: 15805.8 | G31: =F31*(1-$C31)*$D31*(1/$E31) -> 14225.22
B32: Potatoes | C32: 0.16 | D32: 0.92 | E32: 1 | F32: 22922.4 | G32: =F32*(1-$C32)*$D32*(1/$E32) -> 17714.43072
B33: Rice, paddy | C33: 0 | D33: 0.66 | E33: 1 | F33: 3584.5 | G33: =F33*(1-$C33)*$D33*(1/$E33) -> 2365.77
B34: Sesame seed | C34: 0.022 | D34: 0.99 | E34: 1 | F34: 456.1 | G34: =F34*(1-$C34)*$D34*(1/$E34) -> 441.605142
B35: Sorghum | C35: 0.01 | D35: 0.95 | E35: 1 | F35: 926.1 | G35: =F35*(1-$C35)*$D35*(1/$E35) -> 870.99705
B36: Soybeans | C36: 0.045 | D36: 0.94 | E36: 1 | F36: 965.2 | G36: =F36*(1-$C36)*$D36*(1/$E36) -> 866.46004
B37: Spices, nes | C37: 0 | D37: 1 | E37: 1 | F37: 2211.8 | G37: =F37*(1-$C37)*$D37*(1/$E37) -> 2211.8
B38: Sugar cane | C38: 0 | D38: 0.11 | E38: 1 | F38: 70259.8 | G38: =F38*(1-$C38)*$D38*(1/$E38) -> 7728.578
B39: Sweet potatoes | C39: 0.05 | D39: 1 | E39: 1 | F39: 10275.6 | G39: =F39*(1-$C39)*$D39*(1/$E39) -> 9761.82
B40: Tea | C40: 0.01 | D40: 1 | E40: 1 | F40: 1998.9 | G40: =F40*(1-$C40)*$D40*(1/$E40) -> 1978.911
B41: Tomatoes | C41: 0.1 | D41: 1 | E41: 1 | F41: 21241.8 | G41: =F41*(1-$C41)*$D41*(1/$E41) -> 19117.62
B42: Wheat | C42: 0.015 | D42: 0.9 | E42: 0.8 | F42: 3145.7 | G42: =F42*(1-$C42)*$D42*(1/$E42) -> 3485.828812
B43: Oilcrops Primary | C43: 0 | D43: 1 | E43: 1 | F43: 278.8 | G43: =F43*(1-$C43)*$D43*(1/$E43) -> 278.8
B44: Treenuts,Total | C44: 0.02 | D44: 1 | E44: 1 | F44: 763.9 | G44: =F44*(1-$C44)*$D44*(1/$E44) -> 748.622

Sheet Table 2
A1: Table 2. (a) Components of feed and feed conversion efficiencies for livestock products [Mekonnen & Hoekstra (2010) The green, blue and grey water footprint of farm animals and animal products. Value of Water Research Report Series No. 48]. (b) Conversion of root products to derived products. The product fraction is defined as the quantity of the processed product obtained per quantity of root product; the value fraction is defined as the ratio of the market value of the product to the aggregated market value of all the products obtained from the root product [Hoekstra & Chapagain, Globalization of Water: Sharing the Planet's Freshwater Resources. Blackwell Publishing, 2008 - Appendix I - Analytical Framework for the Assessment of Virtual-Water Content, Virtual-Water Flows, Water Savings, Water Footprints, and Water Dependencies]. For example, the root product of ghee is milk, and 5 g of ghee can be derived from 100 g of milk, with the ghee representing 28% of the economic value of the derived products.
B4: (a) Components of feed and feed conversion efficiencies for livestock products
O5: Feed conversion efficiency | Q5: Feed requirement
C6: Production system | D6: Concentrates | I6: Roughages | Q6: Concentrate | R6: Roughage | U6: Yield | X6: Land requirement grass
D7: cereals | E7: oilmeals | F7: other concentrates | G7: All concentrates | I7: Residues and fodder | J7: Grass | K7: Scavenging | L7: All roughages | R7: grass | S7: non-grass | V7: Grass
D8: %-age of total feed | O8: mass feed:product | Q8: kg/kg product | U8: t feed/ha | X8: ha/kg feed
B9: Dairy cattle/buffalo | C9: Average | D9: 1.822298576 | E9: 0.2705440634 | F9: 0.9111451606 | G9: 3.0039878 | I9: 36.55731402 | J9: 30.23928974 | K9: 30.23928974 | L9: 97.0358935 | N9: Dairy cattle/buffalo | O9: 2.2 | Q9: =(G9/100)*$O9 -> 0.0660877316 | R9: =(J9/100)*$O9 -> 0.6652643743 | S9: =((I9+K9)/100)*$O9 -> 1.469525283 | V9: 4 | X9: =R9/(V9*1000) -> 0.0001663160936
B10: Sheep/goat | C10: Average | D10: 1.485048611 | E10: 0 | F10: 2.475069807 | G10: 3.960118418 | I10: 4.940177569 | J10: 45.05982244 | K10: 46.04706029 | L10: 96.0470603 | N10: Sheep/goat | O10: 21.8 | Q10: =(G10/100)*$O10 -> 0.8633058152 | R10: =(J10/100)*$O10 -> 9.823041293 | S10: =((I10+K10)/100)*$O10 -> 11.11521785 | V10: 4 | X10: =R10/(V10*1000) -> 0.002455760323
B11: Pig | C11: Average | D11: 23.22761917 | E11: 3.903898794 | F11: 13.1476494 | G11: 40.27916736 | I11: 59.72083264 | J11: 0 | K11: 0 | L11: 59.72083264 | N11: Pig | O11: 5.8 | Q11: =(G11/100)*$O11 -> 2.336191707 | R11: =(J11/100)*$O11 -> 0 | S11: =((I11+K11)/100)*$O11 -> 3.463808293 | V11: 4 | X11: =R11/(V11*1000) -> 0
B12: Poultry_broiler | C12: Average | D12: 58.21053988 | E12: 18.61378867 | F12: 14.55256905 | G12: 91.3768976 | I12: 8.6231024 | J12: 0 | K12: 0 | L12: 8.6231024 | N12: Poultry_broiler | O12: 5.8 | Q12: =(G12/100)*$O12 -> 5.299860061 | R12: =(J12/100)*$O12 -> 0 | S12: =((I12+K12)/100)*$O12 -> 0.5001399392 | V12: 4 | X12: =R12/(V12*1000) -> 0
B13: Poultry_layer | C13: Average | D13: 58.21053988 | E13: 18.61378867 | F13: 14.55256905 | G13: 91.3768976 | I13: 8.6231024 | J13: 0 | K13: 0 | L13: 8.6231024 | N13: Poultry_layer | O13: 3.6 | Q13: =(G13/100)*$O13 -> 3.289568314 | R13: =(J13/100)*$O13 -> 0 | S13: =((I13+K13)/100)*$O13 -> 0.3104316864 | V13: 4 | X13: =R13/(V13*1000) -> 0
B16: (b) Conversion of root products to derived products
C18: Proportion wasted | D18: Product fraction | E18: Value fraction
B19: Ghee | C19: 0.012 | D19: 0.054 | E19: 0.2750388296
B20: High fat dairy | C20: 0.012 | D20: 0.214 | E20: 0.5023184284
B21: Low fat dairy | C21: 0.012 | D21: 1 | E21: 1
B22: Egg | C22: 0 | D22: 0.97 | E22: 1
B23: Mutton | C23: 0 | D23: 0.5 | E23: 0.8862214708
B24: Other meat | C24: 0 | D24: 0.76 | E24: 0.3274942556
B25: Poultry | C25: 0 | D25: 0.86666667 | E25: 1
